[Event "ROU-ch Women 2019"]
[Site "Olanesti"]
[Date "2019.03.04"]
[Round "3.20"]
[White "Visanescu, Daria-Ioana"]
[Black "Balan, Briana-Cleopatra"]
[Result "1-0"]
[ECO "B22"]
[WhiteElo "2084"]
[BlackElo "1873"]
[Annotator "NA RC"]
[PlyCount "67"]
[EventDate "2019.03.02"]
[EventType "swiss"]
[EventCountry "ROU"]
[SourceTitle "playchess.com"]
[Source "ChessBase"]
[SourceQuality "1"]
[TimeControl "40/5400+30:1800+30"]

1. e4 {[%emt 0:00:00]} c5 {[%emt 0:00:00]} 2. c3 {[%emt 0:00:00]} d5 {[%emt 0:00:00]} 3. exd5 {[%emt 0:00:00]} Qxd5 {[%emt 0:00:00]} 4. d4 {[%emt 0:00:05]} Nc6 {[%emt 0:00:24]} 5. Nf3 {[%emt 0:00:09]} Bf5 {[%emt 0:00:16]} 6. Be3 {[%emt 0:01:48]} cxd4 {[%emt 0:01:21]} 7. cxd4 {[%emt 0:02:09]} Bxb1 {[%emt 0:01:45]} 8. Qxb1 {[%emt 0:03:07]} e6 {[%emt 0:02:39]} 9. a3 {[%emt 0:05:59]} Nf6 {[%emt 0:01:25]} 10. Be2 {[%emt 0:00:52]} Be7 {[%emt 0:01:39]} 11. O-O {[%emt 0:00:11]} O-O {[%emt 0:00:10]} 12. Rd1 {[%emt 0:01:43]} Rac8 {[%emt 0:03:16]} 13. Ng5 {[%emt 0:03:20]} h6 {[%emt 0:07:43]} 14. Nh3 {[%emt 0:02:06]} Rfd8 {[%emt 0:05:48]} 15. Nf4 {[%emt 0:00:49]} Qd6 {[%emt 0:01:03]} 16. Bf3 {[%emt 0:00:55]} Nd5 {[%emt 0:17:53]} 17. Nxd5 {[%emt 0:29:06]} exd5 {[%emt 0:00:19]} 18. Qf5 {[%emt 0:00:39]} Qf6 {[%emt 0:05:39]} 19. Qh5 {[%emt 0:01:24]} Bd6 {[%emt 0:13:16]} 20. Bxd5 {[%emt 0:07:23]} Bxh2+ {[%emt 0:02:33]} 21. Kh1 {[%emt 0:01:14]} Bc7 {[%emt 0:06:17]} 22. Ba2 {[%emt 0:03:36]} Nxd4 {[%emt 0:11:41]} 23. Bxd4 {[%emt 0:03:02]} Rxd4 {[%emt 0:00:08]} 24. Qxf7+ {[%emt 0:00:30]} Kh8 {[%emt 0:01:17]} 25. Qxf6 {[%emt 0:00:35]} Rxd1+ {[%emt 0:00:09]} 26. Rxd1 {[%emt 0:00:03]} gxf6 {[%emt 0:00:07]} 27. Rc1 {[%emt 0:00:04]} b6 {[%emt 0:06:36]} 28. g4 {[%emt 0:02:02]} a5 {[%emt 0:02:58]} 29. Kg2 {[%emt 0:00:37]} b5 {[%emt 0:02:15]} 30. Bb1 {[%emt 0:00:58]} b4 {[%emt 0:00:20]} 31. axb4 {[%emt 0:00:21]} axb4 {[%emt 0:00:04]} 32. Bf5 {[%emt 0:00:05]} Rd8 {[%emt 0:00:20]} 33. Rxc7 {[%emt 0:00:08]} Rd2 {[%emt 0:00:10]} 34. b3 {[%emt 0:00:42]} 1-0

[Event "ROU-ch Women 2019"]
[Site "Olanesti"]
[Date "2019.03.05"]
[Round "4.17"]
[White "Dragomirescu, Angela"]
[Black "Ionescu, Irina"]
[Result "1/2-1/2"]
[ECO "D13"]
[WhiteElo "2260"]
[BlackElo "2270"]
[Annotator "NA"]
[PlyCount "35"]
[EventDate "2019.03.02"]
[EventType "swiss"]
[EventCountry "ROU"]
[SourceTitle "playchess.com"]
[Source "ChessBase"]
[SourceQuality "1"]
[TimeControl "40/5400+30:1800+30"]

1. d4 {[%emt 0:03:09]} d5 {[%emt 0:00:16]} 2. c4 {[%emt 0:00:04]} c6 {[%emt 0:00:06]} 3. Nc3 {[%emt 0:00:08]} Nf6 {[%emt 0:00:13]} 4. Nf3 {[%emt 0:00:04]} a6 {[%emt 0:00:14]} 5. cxd5 {[%emt 0:00:14]} cxd5 {[%emt 0:00:17]} 6. Bf4 {[%emt 0:00:22]} Nc6 {[%emt 0:00:34]} 7. e3 {[%emt 0:00:21]} Bg4 {[%emt 0:01:26]} 8. Be2 {[%emt 0:00:20]} e6 {[%emt 0:00:42]} 9. O-O {[%emt 0:00:20]} Bxf3 {[%emt 0:01:33]} 10. Bxf3 {[%emt 0:00:05]} Bd6 {[%emt 0:00:06]} 11. Bxd6 {[%emt 0:00:38]} Qxd6 {[%emt 0:00:06]} 12. Rc1 {[%emt 0:00:22]} O-O {[%emt 0:00:34]} 13. Qd2 {[%emt 0:03:28]} Nd7 $11 {[%emt 0:04:10]} 14. Na4 {[%emt 0:00:54]} Rfc8 {[%emt 0:02:40]} 15. Nc5 {[%emt 0:00:23]} b6 {[%emt 0:02:48]} 16. Nxd7 {[%emt 0:00:25]} Qxd7 {[%emt 0:00:05]} 17. h3 {[%emt 0:03:50]} Na5 {[%emt 0:02:45]} 18. Rxc8+ {[%emt 0:00:48]} 1/2-1/2

[Event "ROU-ch Women 2019"]
[Site "Olanesti"]
[Date "2019.03.05"]
[Round "4.19"]
[White "Visanescu, Daria-Ioana"]
[Black "Sgircea, Silvia-Raluca"]
[Result "0-1"]
[ECO "B22"]
[WhiteElo "2084"]
[BlackElo "2252"]
[Annotator "NA"]
[PlyCount "82"]
[EventDate "2019.03.02"]
[EventType "swiss"]
[EventCountry "ROU"]
[SourceTitle "playchess.com"]
[Source "ChessBase"]
[SourceQuality "1"]
[TimeControl "40/5400+30:1800+30"]

1. e4 {[%emt 0:00:36]} c5 {[%emt 0:00:00]} 2. c3 {[%emt 0:00:21]} d5 {[%emt 0:00:01]} 3. exd5 {[%emt 0:00:18]} Qxd5 {[%emt 0:00:02]} 4. d4 e6 {[%emt 0:00:29]} 5. Nf3 {[%emt 0:00:38]} Nf6 {[%emt 0:00:12]} 6. Be2 {[%emt 0:01:14]} Be7 {[%emt 0:00:45]} 7. O-O {[%emt 0:00:34]} O-O {[%emt 0:00:06]} 8. Be3 {[%emt 0:00:02]} cxd4 {[%emt 0:01:13]} 9. Nxd4 {[%emt 0:02:06] B22: Sicilian: 2 c3} (9. cxd4 Nc6 10. Nc3 Qd6 11. Qb3 b6 12. Rfd1 Bb7 13. Bg5 Rfd8 14. Bh4 Qb4 15. Qxb4 Nxb4 16. Rac1 Rac8 17. Ne5 Kf8 18. a3 Nbd5 19. Nxd5 Nxd5 {0-1 (57) Shkapenko,P (2421)-Panarin,M (2555) St Petersburg 2014}) 9... Rd8 {[%emt 0:01:49]} 10. Qc2 {[%emt 0:03:05]} a6 $146 {[%emt 0:05:34]} ({Predecessor:} 10... Nc6 11. Nxc6 Qxc6 12. Bf3 Qc7 13. Rd1 Bd7 14. Qb3 Bc6 15. Nd2 Nd5 16. Bxd5 Bxd5 {½-½ (41) Steiniger,F (1510)-Gucaga,A (1781) Kouty nad Desnou 2015}) 11. Rd1 {[%emt 0:01:24]} Qa5 {[%emt 0:00:47]} 12. Nd2 {[%emt 0:00:41]} Nbd7 {[%emt 0:00:38]} (12... Qc7 $11) 13. b4 {[%emt 0:03:16]} Qc7 {[%emt 0:00:24]} 14. Qb3 {[%emt 0:00:09]} Nd5 {[%emt 0:05:25]} 15. Rac1 {[%emt 0:02:29]} Nxe3 {[%emt 0:04:58]} 16. fxe3 {[%emt 0:00:06]} Nf6 {[%emt 0:03:52]} 17. Qc4 {[%emt 0:16:15]} Qb6 {[%emt 0:16:54]} 18. Qb3 {[%emt 0:07:10]} e5 {[%emt 0:08:26]} 19. Nc2 {[%emt 0:05:40]} Bf5 {[%emt 0:05:47]} 20. Nf1 {[%emt 0:01:48]} Ng4 {[%emt 0:05:29]} 21. Bxg4 {[%emt 0:06:43]} Bxg4 {[%emt 0:00:02]} 22. Rxd8+ {[%emt 0:00:39]} Rxd8 {[%emt 0:00:03]} 23. Kh1 {[%emt 0:00:46]} Qf6 {[%emt 0:10:37]} 24. Qc4 {[%emt 0:06:59]} Be6 {[%emt 0:01:10]} 25. Qe2 {[%emt 0:04:10]} Rc8 {[%emt 0:01:59]} 26. Ng3 {[%emt 0:02:52]} Bxa2 {[%emt 0:03:05]} 27. Rf1 {[%emt 0:03:51]} Qe6 {[%emt 0:07:17]} 28. Qe1 {[%emt 0:03:53]} Qb3 {[%emt 0:02:32]} 29. Nf5 {[%emt 0:01:23]} Bf8 {[%emt 0:00:14]} 30. Qe2 {[%emt 0:10:23]} Qxc3 {[%emt 0:01:31]} 31. Rf2 {[%emt 0:00:32]} Be6 {[%emt 0:01:12]} 32. e4 {[%emt 0:00:45]} Bxf5 {[%emt 0:05:16]} 33. exf5 {[%emt 0:00:07]} Bxb4 {[%emt 0:00:48]} 34. f6 {[%emt 0:01:05]} g6 {[%emt 0:01:41]} 35. h3 {[%emt 0:00:09]} Bf8 {[%emt 0:00:18]} 36. Ne3 {[%emt 0:01:23]} e4 {[%emt 0:00:54]} 37. Ng4 {[%emt 0:02:50]} h5 {[%emt 0:01:11]} 38. Ne3 {[%emt 0:00:24]} Qd3 {[%emt 0:01:06]} 39. Qe1 $19 {[%emt 0:00:25]} b5 {[%emt 0:01:17]} 40. g4 {[%emt 0:00:00]} Bh6 {[%emt 0:00:00]} 41. Re2 {[%emt 0:01:35]} Rc3 {[%emt 0:02:17]} 0-1

[Event "ROU-ch Women 2019"]
[Site "Olanesti"]
[Date "2019.03.05"]
[Round "4.20"]
[White "Schiopu, Andreea-Alexandra"]
[Black "Aciu, Malina-Andreea"]
[Result "0-1"]
[ECO "E11"]
[WhiteElo "1641"]
[BlackElo "1980"]
[Annotator "NA"]
[PlyCount "54"]
[EventDate "2019.03.02"]
[EventType "swiss"]
[EventCountry "ROU"]
[SourceTitle "playchess.com"]
[Source "ChessBase"]
[SourceQuality "1"]
[TimeControl "40/5400+30:1800+30"]

1. Nf3 {[%emt 0:00:00]} Nf6 {[%emt 0:00:00]} 2. c4 {[%emt 0:00:09]} e6 {[%emt 0:00:00]} 3. g3 {[%emt 0:01:44]} d5 {[%emt 0:00:06]} 4. d4 {[%emt 0:01:49]} Bb4+ {[%emt 0:00:07]} 5. Bd2 {[%emt 0:01:59]} Be7 {[%emt 0:00:05]} 6. Bg2 {[%emt 0:00:21]} O-O {[%emt 0:00:08]} 7. O-O {[%emt 0:00:54]} c6 {[%emt 0:00:05]} 8. Qc2 {[%emt 0:02:46]} Nbd7 {[%emt 0:00:48]} 9. c5 {[%emt 0:03:35]} a5 {[%emt 0:04:35]} 10. Rc1 {[%emt 0:03:09]} b6 {[%emt 0:11:19]} 11. b4 {[%emt 0:07:02]} axb4 {[%emt 0:04:59]} 12. Bxb4 {[%emt 0:01:57]} bxc5 {[%emt 0:04:35]} 13. dxc5 {[%emt 0:00:54]} Ba6 {[%emt 0:05:43]} 14. Nd4 {[%emt 0:03:21]} Qc7 {[%emt 0:03:35]} 15. e4 {[%emt 0:04:42]} g6 {[%emt 0:06:04]} 16. Nd2 {[%emt 0:03:47]} Ne5 {[%emt 0:03:58]} 17. Bf1 {[%emt 0:02:57]} Qb7 {[%emt 0:10:23]} 18. a3 {[%emt 0:04:27]} Bxf1 {[%emt 0:02:28]} 19. Rxf1 {[%emt 0:03:55]} Qa6 {[%emt 0:01:25]} 20. f4 {[%emt 0:03:45]} Nd3 {[%emt 0:02:48]} 21. Nxc6 {[%emt 0:01:28]} Qxc6 {[%emt 0:01:08]} 22. Qxd3 {[%emt 0:00:15]} Bxc5+ {[%emt 0:00:18]} 23. Bxc5 {[%emt 0:00:14]} Qxc5+ {[%emt 0:00:04]} 24. Kh1 {[%emt 0:03:02]} dxe4 {[%emt 0:00:10]} 25. Nxe4 {[%emt 0:01:16]} Qc6 {[%emt 0:06:48]} 26. Rfe1 {[%emt 0:02:10]} Ra4 {[%emt 0:01:12]} 27. Qd6 {[%emt 0:00:21]} Qa8 {[%emt 0:01:47]} 0-1

[Event "ROU-ch Women 2019"]
[Site "Olanesti"]
[Date "2019.03.07"]
[Round "6.17"]
[White "Sgircea, Silvia-Raluca"]
[Black "Sandu, Mihaela"]
[Result "1-0"]
[ECO "A48"]
[WhiteElo "2252"]
[BlackElo "2294"]
[Annotator "ChessBase"]
[PlyCount "100"]
[EventDate "2019.03.02"]
[EventType "swiss"]
[EventCountry "ROU"]
[SourceTitle "playchess.com"]
[Source "ChessBase"]
[SourceQuality "1"]
[TimeControl "40/5400+30:1800+30"]

1. d4 {[%emt 0:00:00]} Nf6 {[%emt 0:00:00]} 2. Nf3 {[%emt 0:00:00]} g6 {[%emt 0:01:43]} 3. c4 {[%emt 0:00:23]} Bg7 {[%emt 0:00:05]} 4. Nc3 {[%emt 0:00:09]} O-O {[%emt 0:00:26]} 5. e3 {[%emt 0:00:22]} d6 {[%emt 0:02:38]} 6. Be2 {[%emt 0:00:13]} Nbd7 {[%emt 0:01:17]} 7. O-O {[%emt 0:00:09]} e5 {[%emt 0:01:54]} 8. Qc2 {[%emt 0:00:12]} Re8 {[%emt 0:00:17]} 9. b3 {[%emt 0:00:55]} exd4 {[%emt 0:02:46]} 10. Nxd4 {[%emt 0:01:37]} a6 {[%emt 0:03:38]} 11. Bb2 {[%emt 0:00:32]} Ne5 {[%emt 0:05:46]} 12. Rfd1 {[%emt 0:11:40]} Bd7 {[%emt 0:03:08]} 13. h3 {[%emt 0:10:15]} Qc8 {[%emt 0:00:37]} 14. Nd5 {[%emt 0:07:40]} Qd8 {[%emt 0:13:08]} 15. Nc3 {[%emt 0:21:05]} Rb8 {[%emt 0:12:07]} 16. b4 {[%emt 0:06:57]} Nc6 {[%emt 0:08:19]} 17. Nxc6 {[%emt 0:02:04]} bxc6 {[%emt 0:01:33]} 18. a3 {[%emt 0:02:04]} a5 {[%emt 0:14:11]} 19. b5 {[%emt 0:00:47]} Bf5 {[%emt 0:02:39]} 20. Bd3 {[%emt 0:05:57]} Bxd3 {[%emt 0:00:30]} 21. Qxd3 {[%emt 0:01:35]} Nd7 {[%emt 0:00:33]} 22. Rab1 {[%emt 0:02:44]} Qh4 {[%emt 0:03:23]} 23. Qe2 {[%emt 0:02:06]} Nb6 {[%emt 0:03:01]} 24. c5 {[%emt 0:07:03]} dxc5 {[%emt 0:00:19]} 25. bxc6 {[%emt 0:00:02]} Qc4 {[%emt 0:01:15]} 26. Qe1 {[%emt 0:01:10]} Qe6 {[%emt 0:01:23]} 27. Nb5 {[%emt 0:00:47]} Qxc6 {[%emt 0:08:08]} 28. Bxg7 {[%emt 0:00:08]} Kxg7 {[%emt 0:00:04]} 29. Qxa5 {[%emt 0:00:22]} Nd5 {[%emt 0:03:25]} 30. a4 {[%emt 0:04:33]} Rbd8 {[%emt 0:03:57]} 31. Rdc1 {[%emt 0:05:09]} Re4 {[%emt 0:01:08]} 32. Na7 {[%emt 0:03:06]} Qxa4 {[%emt 0:01:19]} 33. Qxc5 {[%emt 0:00:17]} Re6 {[%emt 0:00:42]} 34. Nc6 {[%emt 0:00:42]} Rdd6 {[%emt 0:00:45]} 35. Nd4 {[%emt 0:00:22]} Re4 {[%emt 0:00:38]} 36. Nb5 {[%emt 0:00:46]} Rd7 {[%emt 0:00:18]} 37. Qc6 {[%emt 0:03:00]} Nf6 {[%emt 0:00:24]} 38. Nd4 {[%emt 0:01:27]} Qa2 {[%emt 0:00:47]} 39. Qc2 {[%emt 0:00:24]} Qa6 {[%emt 0:00:42]} 40. Rb4 {[%emt 0:00:00]} Re8 {[%emt 0:00:00]} 41. Rc4 {[%emt 0:01:38]} Nd5 {[%emt 0:01:24]} 42. Rc6 {[%emt 0:03:54]} Qa5 {[%emt 0:01:40]} 43. Rc5 {[%emt 0:01:27]} Qb6 {[%emt 0:07:58]} 44. Nc6 {[%emt 0:01:42]} Rd6 {[%emt 0:04:36]} 45. Qa2 {[%emt 0:10:41]} Kg8 {[%emt 0:10:36]} 46. Nd4 {[%emt 0:01:38]} Nb4 {[%emt 0:03:42]} 47. Qc4 {[%emt 0:00:25]} Na6 {[%emt 0:01:30]} 48. Rb5 {[%emt 0:00:39]} Qa7 {[%emt 0:00:11]} 49. Nc6 {[%emt 0:00:23]} Ree6 {[%emt 0:00:29]} 50. Nxa7 {[%emt 0:00:09]} Nb8 1-0

[Event "ROU-ch Women 2019"]
[Site "Olanesti"]
[Date "2019.03.07"]
[Round "6.18"]
[White "Aciu, Malina-Andreea"]
[Black "Cosma, Elena-Luminita"]
[Result "1/2-1/2"]
[ECO "C10"]
[WhiteElo "1980"]
[BlackElo "2324"]
[Annotator "NA"]
[PlyCount "75"]
[EventDate "2019.03.02"]
[EventType "swiss"]
[EventCountry "ROU"]
[SourceTitle "playchess.com"]
[Source "ChessBase"]
[SourceQuality "1"]
[TimeControl "40/5400+30:1800+30"]

1. e4 {[%emt 0:00:00]} e6 {[%emt 0:00:00]} 2. d4 {[%emt 0:00:00]} d5 {[%emt 0:00:00]} 3. Nc3 {[%emt 0:00:00]} h6 {[%emt 0:00:25]} 4. Nf3 {[%emt 0:00:00]} (4. f4 dxe4 5. Nxe4 Nd7 6. Nf3 Ngf6 7. Nxf6+ Nxf6 8. Bd3 c5 9. Qe2 cxd4 10. Bd2 Qb6 11. O-O-O Bd7 {0-1 (66) Short,N (2646)-Lomasov,S (2553) Moscow 2018}) 4... Nf6 {[%emt 0:00:04]} 5. Bd3 {[%emt 0:15:19]} Bb4 {[%emt 0:00:17]} 6. e5 {[%emt 0:01:13] C10: French with 3 Nc3: Unusual Black 3rd moves and 3...dxe4} Ne4 {[%emt 0:00:10]} 7. Bd2 {[%emt 0:02:15]} Bxc3 {[%emt 0:03:32]} 8. bxc3 {[%emt 0:05:30]} c5 {[%emt 0:03:09]} 9. O-O {[%emt 0:01:44]} Nxd2 {[%emt 0:01:37]} 10. Qxd2 {[%emt 0:03:49]} O-O $146 {[%emt 0:00:31]} ({Predecessor:} 10... c4 11. Be2 Bd7 {1-0 (42) Tzintzios,G (2186)-Tepelenis,N (2079) Rio Achaea 2018}) 11. Qe3 {[%emt 0:04:57]} Qe7 {[%emt 0:16:34]} 12. a4 {[%emt 0:13:01]} c4 {[%emt 0:12:14]} 13. Be2 {[%emt 0:00:11]} Bd7 {[%emt 0:00:05]} 14. g3 {[%emt 0:06:21]} Nc6 {[%emt 0:01:41]} 15. Nh4 {[%emt 0:01:23]} Kh7 {[%emt 0:11:12]} 16. f4 {[%emt 0:04:07]} g6 {[%emt 0:00:07]} 17. Qf2 {[%emt 0:01:42]} Rg8 {[%emt 0:06:16]} 18. Ng2 {[%emt 0:02:46]} Raf8 {[%emt 0:01:20]} 19. Ne3 {[%emt 0:01:23]} f5 {[%emt 0:00:37]} 20. exf6 {[%emt 0:00:52]} Qxf6 {[%emt 0:02:23]} 21. Qg2 {[%emt 0:04:26]} Qg7 {[%emt 0:02:35]} 22. g4 {[%emt 0:04:04]} Rf7 {[%emt 0:06:34]} 23. Qg3 {[%emt 0:06:01]} Rgf8 {[%emt 0:00:26]} 24. g5 {[%emt 0:05:11]} h5 {[%emt 0:02:47]} 25. Qh4 {[%emt 0:00:32]} Kg8 {[%emt 0:07:22]} 26. f5 {[%emt 0:01:42]} Rxf5 {[%emt 0:00:35]} 27. Nxf5 {[%emt 0:00:03]} exf5 {[%emt 0:00:08]} 28. Bf3 {[%emt 0:00:45]} Be6 {[%emt 0:00:45]} 29. Rfe1 {[%emt 0:00:36]} Qd7 {[%emt 0:01:46]} 30. Qf4 {[%emt 0:00:20]} Bf7 {[%emt 0:00:47]} 31. Kf2 {[%emt 0:01:22]} Re8 $16 {[%emt 0:02:37]} 32. Rxe8+ {[%emt 0:01:04]} Bxe8 {[%emt 0:00:04]} 33. Rb1 {[%emt 0:05:00]} Bf7 {[%emt 0:00:29]} 34. Bg2 {[%emt 0:03:43]} Kh7 {[%emt 0:01:17]} 35. Bf3 {[%emt 0:00:28]} Kg8 {[%emt 0:00:11]} 36. Bg2 {[%emt 0:00:03]} Kh7 {[%emt 0:00:09]} 37. Bf3 {[%emt 0:00:02]} Kg8 {[%emt 0:01:32]} 38. Bg2 {[%emt 0:00:04]} 1/2-1/2

[Event "ROU-ch Women 2019"]
[Site "Olanesti"]
[Date "2019.03.07"]
[Round "6.20"]
[White "Dragomirescu, Angela"]
[Black "Paraschiv, Petronela-Alexandra"]
[Result "1-0"]
[ECO "A40"]
[WhiteElo "2260"]
[BlackElo "1872"]
[Annotator "ChessBase"]
[PlyCount "61"]
[EventDate "2019.03.02"]
[EventType "swiss"]
[EventCountry "ROU"]
[SourceTitle "playchess.com"]
[Source "ChessBase"]
[SourceQuality "1"]
[TimeControl "40/5400+30:1800+30"]

1. d4 {[%emt 0:00:00]} Nf6 {[%emt 0:00:00]} 2. c4 {[%emt 0:00:20]} e6 {[%emt 0:00:00]} 3. g3 {[%emt 0:00:06]} d5 {[%emt 0:00:20]} 4. Nf3 {[%emt 0:00:15]} b6 {[%emt 0:00:53]} 5. Bg2 {[%emt 0:02:34]} Bb7 {[%emt 0:00:06]} 6. cxd5 {[%emt 0:01:09]} Nxd5 {[%emt 0:00:58]} 7. Qa4+ {[%emt 0:08:52]} Qd7 {[%emt 0:02:37]} 8. Qb3 {[%emt 0:04:15]} c5 {[%emt 0:05:46]} 9. O-O {[%emt 0:06:47]} cxd4 {[%emt 0:03:58]} 10. Nxd4 {[%emt 0:03:46]} Bc5 {[%emt 0:01:03]} 11. Rd1 {[%emt 0:00:47]} Qe7 {[%emt 0:04:13]} 12. Qa4+ {[%emt 0:30:46]} Nd7 {[%emt 0:13:30]} 13. Nd2 {[%emt 0:07:41]} O-O {[%emt 0:02:11]} 14. Ne4 {[%emt 0:01:55]} Bxd4 {[%emt 0:03:56]} 15. Rxd4 {[%emt 0:08:34]} h6 {[%emt 0:03:19]} 16. Bd2 {[%emt 0:05:39]} Rfd8 {[%emt 0:06:34]} 17. Rd1 {[%emt 0:00:05]} f5 {[%emt 0:03:24]} 18. Nc3 {[%emt 0:01:58]} Nc5 {[%emt 0:01:19]} 19. Qa3 {[%emt 0:08:52]} Nxc3 {[%emt 0:04:36]} 20. Bxc3 {[%emt 0:00:02]} Bxg2 {[%emt 0:00:56]} 21. Kxg2 {[%emt 0:00:04]} Rxd4 {[%emt 0:01:25]} 22. Rxd4 {[%emt 0:00:08]} Qb7+ {[%emt 0:00:37]} 23. f3 {[%emt 0:01:37]} e5 {[%emt 0:00:47]} 24. Rd2 {[%emt 0:00:18]} e4 {[%emt 0:00:50]} 25. b4 {[%emt 0:00:15]} Nd7 {[%emt 0:01:01]} 26. Qb3+ {[%emt 0:00:12]} Kh8 {[%emt 0:03:37]} 27. Qf7 {[%emt 0:00:21]} exf3+ {[%emt 0:00:41]} 28. exf3 {[%emt 0:00:01]} Nc5 {[%emt 0:00:34]} 29. Bxg7+ {[%emt 0:02:36]} Kh7 {[%emt 0:00:07]} 30. Qxf5+ {[%emt 0:00:06]} Kxg7 {[%emt 0:00:07]} 31. bxc5 {[%emt 0:00:02]} 1-0

[Event "ROU-ch Women 2019"]
[Site "Olanesti"]
[Date "2019.03.08"]
[Round "7.16"]
[White "Lehaci, Miruna-Daria"]
[Black "Sgircea, Silvia-Raluca"]
[Result "1/2-1/2"]
[ECO "B35"]
[WhiteElo "2052"]
[BlackElo "2252"]
[Annotator "NA RC"]
[PlyCount "82"]
[EventDate "2019.03.02"]
[EventType "swiss"]
[EventCountry "ROU"]
[SourceTitle "playchess.com"]
[Source "ChessBase"]
[SourceQuality "1"]
[TimeControl "40/5400+30:1800+30"]

{[%evp 26,67,40,32767,32767,32767,20,0,0,38,52,32767,49,47,51,-14,-12,-23,-14,32767,32767,-114,32767,-125,-117,-124,32767,-107,-68,-75,-75,-85,-89,-154,0,0,16,7,16,9,73,72,75,0]} 1. e4 {[%emt 0:00:00]} c5 {[%emt 0:00:00]} 2. Nf3 {[%emt 0:00:00]} Nc6 {[%emt 0:00:00]} 3. d4 {[%emt 0:00:00]} cxd4 {[%emt 0:00:00]} 4. Nxd4 {[%emt 0:00:00]} Nf6 {[%emt 0:00:14]} 5. Nc3 {[%emt 0:00:00]} g6 {[%emt 0:00:07]} 6. Be3 {[%emt 0:00:00]} Bg7 {[%emt 0:00:09]} 7. Bc4 {[%emt 0:00:00]} O-O {[%emt 0:00:13]} 8. Bb3 {[%emt 0:00:00]} d5 {[%emt 0:00:59]} 9. exd5 {[%emt 0:08:22] B35: Sicilian: Accelerated Dragon with 5 Nc3: main line} Na5 {[%emt 0:00:08]} 10. Nf3 {[%emt 0:02:51]} (10. O-O Nxb3 11. Nxb3 b6 12. d6 e6 13. Qf3 Rb8 14. Rfd1 Bb7 15. Qh3 Rc8 16. Bd4 Nd5 17. Nxd5 Bxd5 18. Bxg7 Kxg7 {1-0 (34) Vachier Lagrave,M (2796)-Gelfand,B (2719) Palma de Mallorca 2017}) 10... Nxb3 {[%emt 0:03:29]} 11. axb3 {[%emt 0:00:42]} b6 {[%emt 0:00:36]} 12. Qd2 {[%emt 0:14:42]} Bb7 {[%emt 0:02:29]} 13. O-O-O {[%emt 0:04:26]} b5 $146 {[%emt 0:15:08]} ({Predecessor:} 13... Qd6 14. Rhe1 Rfd8 15. Bg5 Rac8 16. Qe3 Rd7 {1-0 (32) Kupreichik,V (2431)-Barlocco,C (2162) Courmayeur 2011}) 14. d6 {[%emt 0:04:54]} Qa5 {[%emt 0:08:09]} 15. Kb1 {[%emt 0:04:16]} exd6 {[%emt 0:21:18]} 16. Qxd6 {[%emt 0:05:23]} b4 {[%emt 0:10:31]} 17. Na2 {[%emt 0:08:14]} Rac8 {[%emt 0:02:32]} 18. Qxb4 {[%emt 0:03:37]} Qc7 $1 {[%emt 0:00:35]} 19. Qc3 {[%emt 0:02:25]} Qb8 $1 {[%emt 0:03:03]} 20. Qd2 {[%emt 0:07:13]} ({White should play} 20. Qa5 $14) 20... Be4 $1 {[%emt 0:02:06]} 21. Nc3 {[%emt 0:02:00]} Rxc3 $1 {[%emt 0:15:10]} 22. Qxc3 {[%emt 0:00:35]} Rc8 {[%emt 0:15:11]} 23. Bf4 {[%emt 0:17:14]} (23. Qa5 $11 {keeps the balance.}) 23... Qb7 {[%emt 0:00:41]} 24. Qa5 {[%emt 0:00:44]} ({Don't blunder} 24. Qd2 $2 Rxc2 25. Qxc2 (25. Qd8+ $2 Bf8 $19) 25... Bxc2+ 26. Kxc2 Qe4+ {[%mdl 64] Double Attack} 27. Rd3 Qxf4 $19) 24... Bxc2+ {[%emt 0:00:56]} 25. Ka1 {[%emt 0:00:04]} Qb6 {[%emt 0:06:21]} 26. Qa3 {[%emt 0:02:34]} (26. b4 $1 $11 {was the only way to keep the balance.}) 26... Bxd1 {[%emt 0:04:17]} 27. Rxd1 {[%emt 0:00:05]} Qxf2 {[%emt 0:00:18]} 28. Qa6 {[%emt 0:08:16]} Re8 {[%emt 0:00:26]} 29. Qc6 {[%emt 0:02:39]} (29. Rd2 $142 Qc5 30. Qa4) 29... Nd7 {[%emt 0:03:18]} (29... Qxg2 $17 30. Bg5 Nd7) 30. Rd2 {[%emt 0:01:10]} Qf1+ {[%emt 0:00:01]} 31. Ka2 {[%emt 0:00:04]} Re6 $1 {[%emt 0:00:15]} 32. Bd6 {[%emt 0:01:52]} Nf8 {[%emt 0:01:21]} (32... Nb6 $11) 33. Qc4 {[%emt 0:00:23]} Qh1 {[%emt 0:00:58]} 34. Ng5 $11 {[%emt 0:00:59]} ({Better is} 34. Ba3 $14 Re8 35. Qc6) 34... Qe1 {[%emt 0:00:26]} 35. Nxe6 {[%emt 0:00:38]} Qxd2 {[%emt 0:00:01]} 36. Nxg7 {[%emt 0:00:45]} Qxd6 {[%emt 0:00:06]} 37. Ne8 {[%emt 0:00:10]} Qe5 {[%emt 0:00:58]} 38. Qc6 {[%emt 0:00:45]} Qa5+ {[%emt 0:00:53]} 39. Qa4 {[%emt 0:00:29]} Qe5 {[%emt 0:00:08]} 40. h3 {[%emt 0:00:00]} h5 {[%emt 0:00:00]} 41. Qc6 {[%emt 0:01:22]} Qa5+ {[%emt 0:04:07]} 1/2-1/2

[Event "ROU-ch Women 2019"]
[Site "Olanesti"]
[Date "2019.03.08"]
[Round "7.17"]
[White "Dragomirescu, Angela"]
[Black "Peptan, Corina-Isabela"]
[Result "1/2-1/2"]
[ECO "D14"]
[WhiteElo "2260"]
[BlackElo "2374"]
[Annotator "NA RC"]
[PlyCount "20"]
[EventDate "2019.03.02"]
[EventType "swiss"]
[EventCountry "ROU"]
[SourceTitle "playchess.com"]
[Source "ChessBase"]
[SourceQuality "1"]
[TimeControl "40/5400+30:1800+30"]

1. d4 {[%emt 0:00:00]} d5 {[%emt 0:00:00]} 2. c4 {[%emt 0:00:00]} c6 {[%emt 0:00:00]} 3. cxd5 {[%emt 0:00:00]} cxd5 {[%emt 0:00:00]} 4. Nf3 {[%emt 0:00:00]} Nf6 {[%emt 0:00:00]} 5. Nc3 {[%emt 0:00:00]} Nc6 {[%emt 0:00:00]} 6. Bf4 {[%emt 0:00:00]} Bf5 {[%emt 0:00:21]} 7. e3 {[%emt 0:00:03]} a6 {[%emt 0:00:07]} 8. Bd3 {[%emt 0:00:04]} Bxd3 {[%emt 0:00:05]} 9. Qxd3 {[%emt 0:00:04]} e6 {[%emt 0:00:04]} 10. O-O {[%emt 0:00:04]} Bd6 {[%emt 0:00:05]} 1/2-1/2